fUST/lending_fUST_20240912
["ID","MTS","AMOUNT","RATE_DAILY","PERIOD"]
[337834615,1726144241765,-500.0,0.00016438,2]
[337834617,1726144241775,-500.0,0.00016438,2]
[337834619,1726144241785,-500.0,0.00016438,2]
[337834621,1726144241794,-500.0,0.00016438,2]
[337834623,1726144241805,-500.0,0.00016438,2]
[337834625,1726144241814,-500.0,0.00016438,2]
[337834627,1726144241824,-500.0,0.00016438,2]
[337834629,1726144241834,-500.0,0.00016438,2]
[337834631,1726144241843,-500.0,0.00016438,2]
[337834633,1726144241853,-500.0,0.00016438,2]
[337834635,1726144241862,-500.0,0.00016438,2]
[337834637,1726144241872,-500.0,0.00016438,2]
[337834639,1726144241881,-500.0,0.00016438,2]
[337834641,1726144241891,-500.0,0.00016438,2]
[337834664,1726144242108,-500.0,0.00016438,2]
[337834666,1726144242119,-500.0,0.00016438,2]
[337834668,1726144242131,-500.0,0.00016438,2]
[337834670,1726144242140,-500.0,0.00016438,2]
[337834672,1726144242150,-500.0,0.00016438,2]
[337834674,1726144242160,-500.0,0.00016438,2]
[337834676,1726144242170,-500.0,0.00016438,2]
[337834678,1726144242180,-500.0,0.00016438,2]
[337834681,1726144242190,-500.0,0.00016438,2]
[337834702,1726144242378,-500.0,0.00016438,2]
[337834704,1726144242388,-500.0,0.00016438,2]
[337834706,1726144242397,-500.0,0.00016438,2]
[337834708,1726144242406,-500.0,0.00016438,2]
[337834709,1726144242415,-398.84427964,0.00016438,2]
[337834712,1726144242425,-500.0,0.00016438,2]
[337834714,1726144242434,-500.95370409,0.00016438,2]
[337834716,1726144242444,-500.0,0.00016438,2]
[337834718,1726144242455,-500.0,0.00016438,2]
[337834720,1726144242465,-500.0,0.00016438,2]
[337834722,1726144242475,-619.89,0.00016438,2]
[337834724,1726144242494,-500.0,0.00016438,2]
[337834726,1726144242505,-500.0,0.00016438,2]
[337834728,1726144242516,-500.0,0.00016438,2]
[337834730,1726144242527,-500.0,0.00016438,2]
[337834732,1726144242537,-500.0,0.00016438,2]
[337834734,1726144242547,-500.0,0.00016438,2]
[337834736,1726144242557,-500.0,0.00016438,2]
[337834739,1726144242567,-500.0,0.00016438,2]
[337834741,1726144242577,-500.0,0.00016438,2]
[337834743,1726144242587,-500.0,0.00016438,2]
[337834745,1726144242597,-500.0,0.00016438,2]
[337834747,1726144242607,-500.0,0.00016438,2]
[337834749,1726144242618,-500.0,0.00016438,2]
[337834751,1726144242627,-500.0,0.00016438,2]
[337834753,1726144242638,-879.3,0.00016438,2]
[337834755,1726144242648,-500.0,0.00016438,2]
[337834757,1726144242660,-500.0,0.00016438,2]
[337834759,1726144242672,-500.0,0.00016438,2]
[337834760,1726144242683,-815.0,0.00016438,2]
[337834761,1726144242693,-523.54,0.00016438,2]
[337834762,1726144242704,-500.0,0.00016438,2]
[337834763,1726144242714,-500.0,0.00016438,2]
[337834765,1726144242723,-881.34,0.00016438,2]
[337834766,1726144242737,-500.0,0.00016438,2]
[337834767,1726144242747,-500.0,0.00016438,2]
[337834768,1726144242758,-8073.1,0.00016438,2]
[337834769,1726144242768,-874.06,0.00016438,2]
[337834770,1726144242777,-854.5,0.00016438,2]
[337834771,1726144242788,-500.0,0.00016438,2]
[337834772,1726144242801,-1076.19,0.00016438,2]
[337834773,1726144242811,-511.08,0.00016438,2]
[337834774,1726144242821,-500.0,0.00016438,2]
[337834775,1726144242831,-513.49213517,0.00016438,2]
[337834776,1726144242841,-500.0,0.00016438,2]
[337834777,1726144242851,-500.0,0.00016438,2]
[337834778,1726144242862,-500.0,0.00016438,2]
[337834779,1726144242872,-500.0,0.00016438,2]
[337834780,1726144242881,-500.0,0.00016438,2]
[337834781,1726144242891,-614.83,0.00016438,2]
[337834782,1726144242903,-500.0,0.00016438,2]
[337834783,1726144242912,-500.0,0.00016438,2]
[337834784,1726144242922,-500.0,0.00016438,2]
[337834786,1726144242932,-500.0,0.00016438,2]
[337834787,1726144242943,-12684.43,0.00016438,2]
[337834789,1726144242953,-500.0,0.00016438,2]
[337834791,1726144242964,-500.0,0.00016438,2]
[337834793,1726144242977,-500.0,0.00016438,2]
[337834795,1726144242988,-500.0,0.00016438,2]
[337834797,1726144242997,-500.0,0.00016438,2]
[337834799,1726144243007,-500.0,0.00016438,2]
[337834800,1726144243017,-843.29,0.00016438,2]
[337834802,1726144243028,-500.0,0.00016438,2]
[337834804,1726144243037,-500.0,0.00016438,2]
[337834806,1726144243047,-500.0,0.00016438,2]
[337834808,1726144243056,-500.0,0.00016438,2]
[337834810,1726144243067,-500.0,0.00016438,2]
[337834812,1726144243076,-758.27,0.00016438,2]
[337834814,1726144243086,-500.0,0.00016438,2]
[337834816,1726144243096,-500.0,0.00016438,2]
[337834819,1726144243107,-500.0,0.00016438,2]
[337834821,1726144243117,-500.0,0.00016438,2]
[337834822,1726144243127,-502.56892253,0.00016438,2]
[337834823,1726144243138,-500.0,0.00016438,2]
[337834825,1726144243148,-674.11,0.00016438,2]
[337834827,1726144243158,-500.0,0.00016438,2]
[337834829,1726144243168,-500.0,0.00016438,2]
[337834831,1726144243178,-500.0,0.00016438,2]
[337834833,1726144243188,-516.54165611,0.00016438,2]
[337834835,1726144243199,-500.0,0.00016438,2]
[337834837,1726144243210,-500.0,0.00016438,2]
[337834839,1726144243221,-500.0,0.00016438,2]
[337834842,1726144243237,-500.0,0.00016438,2]
[337834844,1726144243249,-500.0,0.00016438,2]
[337834846,1726144243260,-500.0,0.00016438,2]
[337834848,1726144243270,-500.0,0.00016438,2]
[337834850,1726144243280,-500.0,0.00016438,2]
[337834852,1726144243290,-854.63,0.00016438,2]
[337834855,1726144243300,-505.42851938,0.00016438,2]
[337834857,1726144243309,-500.0,0.00016438,2]
[337834859,1726144243320,-8594.02,0.00016438,2]
[337834861,1726144243330,-500.0,0.00016438,2]
[337834863,1726144243340,-502.5691101,0.00016438,2]
[337834865,1726144243352,-500.0,0.00016438,2]
[337834867,1726144243361,-500.0,0.00016438,2]
[337834869,1726144243371,-500.0,0.00016438,2]
[337834871,1726144243380,-500.0,0.00016438,2]
[337834873,1726144243391,-500.0,0.00016438,2]
[337834876,1726144243402,-500.0,0.00016438,2]
[337834878,1726144243412,-500.0,0.00016438,2]
[337834880,1726144243422,-500.0,0.00016438,2]
[337834882,1726144243433,-500.0,0.00016438,2]
[337834884,1726144243443,-500.0,0.00016438,2]
[337834886,1726144243454,-500.0,0.00016438,2]
[337834888,1726144243464,-500.0,0.00016438,2]
[337834890,1726144243477,-500.0,0.00016438,2]
[337834892,1726144243487,-980.2,0.00016438,2]
[337834894,1726144243497,-500.0,0.00016438,2]
[337834897,1726144243507,-500.0,0.00016438,2]
[337834899,1726144243517,-1748.92,0.00016438,2]
[337834901,1726144243529,-802.71,0.00016438,2]
[337834903,1726144243539,-219.65621999,0.00016438,2]
[337834905,1726144243549,-510.04,0.00016438,2]
[337834907,1726144243559,-500.0,0.00016438,2]
[337834909,1726144243570,-500.0,0.00016438,2]
[337834911,1726144243579,-500.0,0.00016438,2]
[337834913,1726144243589,-822.78,0.00016438,2]
[337834915,1726144243599,-683.45,0.00016438,2]
[337834917,1726144243611,-391.89245305,0.00016438,2]
[337834919,1726144243620,-500.0,0.00016438,2]
[337834922,1726144243630,-500.0,0.00016438,2]
[337834924,1726144243640,-500.0,0.00016438,2]
[337834926,1726144243651,-500.0,0.00016438,2]
[337834928,1726144243662,-500.0,0.00016438,2]
[337834930,1726144243673,-500.0,0.00016438,2]
[337834932,1726144243684,-500.0,0.00016438,2]
[337834934,1726144243694,-151.0,0.00016438,2]
[337834936,1726144243705,-500.0,0.00016438,2]
[337834938,1726144243715,-860.7,0.00016438,2]
[337834941,1726144243727,-500.0,0.00016438,2]
[337834943,1726144243737,-500.0,0.00016438,2]
[337834945,1726144243747,-500.0,0.00016438,2]
[337834947,1726144243759,-500.0,0.00016438,2]
[337834948,1726144243771,-500.0,0.00016438,2]
[337834949,1726144243781,-500.0,0.00016438,2]
[337834950,1726144243792,-500.0,0.00016438,2]
[337834951,1726144243803,-500.0,0.00016438,2]
[337834952,1726144243813,-819.45,0.00016438,2]
[337834953,1726144243822,-500.0,0.00016438,2]
[337834954,1726144243832,-500.0,0.00016438,2]
[337834955,1726144243842,-500.0,0.00016438,2]
[337834957,1726144243854,-500.0,0.00016438,2]
[337834959,1726144243863,-500.0,0.00016438,2]
[337834961,1726144243874,-500.0,0.00016438,2]
[337834963,1726144243885,-500.0,0.00016438,2]
[337834965,1726144243898,-500.0,0.00016438,2]
[337834967,1726144243910,-500.0,0.00016438,2]
[337834970,1726144243921,-4488.58,0.00016438,2]
[337834972,1726144243932,-838.65,0.00016438,2]
[337834974,1726144243944,-500.0,0.00016438,2]
[337834976,1726144243955,-500.0,0.00016438,2]
[337834978,1726144243965,-500.0,0.00016438,2]
[337834980,1726144243981,-500.0,0.00016438,2]
[337834983,1726144243991,-500.0,0.00016438,2]
[337834985,1726144244002,-500.0,0.00016438,2]
[337834987,1726144244013,-500.0,0.00016438,2]
[337834989,1726144244023,-582.30176628,0.00016438,2]
[337834991,1726144244034,-500.28996128,0.00016438,2]
[337834993,1726144244043,-500.0,0.00016438,2]
[337834996,1726144244055,-500.0,0.00016438,2]
[337834998,1726144244066,-500.0,0.00016438,2]
[337835000,1726144244077,-500.0,0.00016438,2]
[337835003,1726144244088,-500.0,0.00016438,2]
[337835005,1726144244097,-500.0,0.00016438,2]
[337835007,1726144244107,-500.0,0.00016438,2]
[337835009,1726144244118,-500.0,0.00016438,2]
[337835011,1726144244130,-500.0,0.00016438,2]
[337835013,1726144244140,-500.0,0.00016438,2]
[337835015,1726144244149,-500.0,0.00016438,2]
[337835017,1726144244159,-500.0,0.00016438,2]
[337835020,1726144244170,-500.0,0.00016438,2]
[337835022,1726144244180,-500.0,0.00016438,2]
[337835024,1726144244189,-500.0,0.00016438,2]
[337835026,1726144244199,-500.0,0.00016438,2]
[337835028,1726144244210,-500.0,0.00016438,2]
[337835030,1726144244220,-500.0,0.00016438,2]
[337835032,1726144244232,-500.0,0.00016438,2]
[337835034,1726144244243,-500.0,0.00016438,2]
[337835037,1726144244254,-500.0,0.00016438,2]
[337835039,1726144244263,-500.0,0.00016438,2]
[337835041,1726144244273,-500.0,0.00016438,2]
[337835043,1726144244283,-505.51201439,0.00016438,2]
[337835045,1726144244294,-655.35,0.00016438,2]
[337835047,1726144244303,-500.0,0.00016438,2]
[337835049,1726144244313,-1039.67,0.00016438,2]
[337835051,1726144244324,-500.0,0.00016438,2]
[337835053,1726144244333,-715.23,0.00016438,2]
[337835055,1726144244343,-500.0,0.00016438,2]
[337835057,1726144244352,-8715.29,0.00016438,2]
[337835059,1726144244362,-500.0,0.00016438,2]
[337835061,1726144244372,-500.0,0.00016438,2]
[337835064,1726144244383,-500.0,0.00016438,2]
[337835066,1726144244393,-500.0,0.00016438,2]
[337835068,1726144244403,-500.0,0.00016438,2]
[337835070,1726144244412,-500.0,0.00016438,2]
[337835072,1726144244421,-500.0,0.00016438,2]
[337835074,1726144244432,-500.0,0.00016438,2]
[337835076,1726144244441,-809.7,0.00016438,2]
[337835078,1726144244451,-500.0,0.00016438,2]
[337835080,1726144244460,-500.0,0.00016438,2]
[337835082,1726144244470,-500.0,0.00016438,2]
[337835084,1726144244480,-500.0,0.00016438,2]
[337835086,1726144244489,-507.55144521,0.00016438,2]
[337835088,1726144244499,-500.0,0.00016438,2]
[337835090,1726144244508,-500.0,0.00016438,2]
[337835092,1726144244519,-655.19,0.00016438,2]
[337835094,1726144244530,-500.0,0.00016438,2]
[337835096,1726144244539,-500.0,0.00016438,2]
[337835099,1726144244549,-500.0,0.00016438,2]
[337835101,1726144244559,-500.0,0.00016438,2]
[337835103,1726144244568,-932.9,0.00016438,2]
[337835105,1726144244578,-500.0,0.00016438,2]
[337835107,1726144244588,-503.04756713,0.00016438,2]
[337835109,1726144244599,-500.0,0.00016438,2]
[337835111,1726144244609,-500.0,0.00016438,2]
[337835113,1726144244620,-502.52948924,0.00016438,2]
[337835115,1726144244629,-500.0,0.00016438,2]
[337835117,1726144244640,-1199.12,0.00016438,2]
[337835119,1726144244649,-7502.49,0.00016438,2]
[337835121,1726144244661,-500.0,0.00016438,2]
[337835123,1726144244671,-500.0,0.00016438,2]
[337835125,1726144244680,-515.09531025,0.00016438,2]
[337835126,1726144244691,-500.0,0.00016438,2]
[337835127,1726144244701,-500.0,0.00016438,2]
[337835128,1726144244712,-500.0,0.00016438,2]
[337835129,1726144244722,-500.0,0.00016438,2]
[337835130,1726144244733,-189.71908438,0.00016438,2]
[337835131,1726144244742,-500.0,0.00016438,2]
[337835132,1726144244751,-843.8,0.00016438,2]
[337835133,1726144244760,-500.0,0.00016438,2]
[337835134,1726144244770,-500.0,0.00016438,2]
[337835135,1726144244779,-502.1377334,0.00016438,2]
[337835136,1726144244788,-500.0,0.00016438,2]
[337835137,1726144244797,-500.0,0.00016438,2]
[337835138,1726144244807,-326.82363334,0.00016438,2]
[337835158,1726144245101,-175.08731624,0.00016438,2]
[337835160,1726144245110,-500.0,0.00016438,2]
[337835162,1726144245120,-500.0,0.00016438,2]
[337835164,1726144245129,-1512.19,0.00016438,2]
[337835166,1726144245139,-504.05805289,0.00016438,2]
[337835168,1726144245148,-2106.52,0.00016438,2]
[337835170,1726144245157,-500.0,0.00016438,2]
[337835172,1726144245166,-1021.09,0.00016438,2]
[337835174,1726144245175,-500.0,0.00016438,2]
[337835176,1726144245184,-919.21,0.00016438,2]
[337835178,1726144245194,-502.40945405,0.00016438,2]
[337835180,1726144245203,-605.19,0.00016438,2]
[337835182,1726144245212,-500.0,0.00016438,2]
[337835184,1726144245221,-500.0,0.00016438,2]
[337835186,1726144245231,-503.32992958,0.00016438,2]
[337835188,1726144245243,-14292.91,0.00016438,2]
[337835190,1726144245252,-502.0,0.00016438,2]
[337835192,1726144245261,-442.7416618,0.00016438,2]
[337835194,1726144245271,-500.0,0.00016438,2]
[337835196,1726144245280,-500.0,0.00016438,2]
[337835198,1726144245289,-638.53,0.00016438,2]
[337835200,1726144245299,-500.0,0.00016438,2]
[337835202,1726144245308,-607.08067222,0.00016438,2]
[337835204,1726144245317,-500.0,0.00016438,2]
[337835206,1726144245326,-151.0,0.00016438,2]
[337835208,1726144245336,-155.211254,0.00016438,2]
[337835210,1726144245346,-151.0,0.00016438,2]
[337835212,1726144245355,-774.513631,0.00016438,2]
[337835213,1726144245364,-774.513631,0.00016438,2]
[337835215,1726144245373,-151.0,0.00016438,2]
[337835217,1726144245383,-151.0,0.00016438,2]
[337835219,1726144245392,-720.913433,0.00016438,2]
[337835221,1726144245401,-720.913433,0.00016438,2]
[337835223,1726144245410,-216.703126,0.00016438,2]
[337835225,1726144245420,-216.703126,0.00016438,2]
[337835227,1726144245431,-151.0,0.00016438,2]
[337835230,1726144245442,-1713.198133,0.00016438,2]
[337835232,1726144245454,-1713.198133,0.00016438,2]
[337835234,1726144245464,-176.745745,0.00016438,2]
[337835236,1726144245474,-176.745745,0.00016438,2]
[337835238,1726144245484,-855.68071,0.00016438,2]
[337835240,1726144245493,-855.68071,0.00016438,2]
[337835242,1726144245503,-249.21395,0.00016438,2]
[337835244,1726144245513,-249.21395,0.00016438,2]
[337835246,1726144245523,-446.153889,0.00016438,2]
[337835248,1726144245534,-249.21395,0.00016438,2]
[337835250,1726144245544,-249.21395,0.00016438,2]
[337835252,1726144245554,-446.153889,0.00016438,2]
[337835254,1726144245564,-151.0,0.00016438,2]
[337835257,1726144245574,-178.113095,0.00016438,2]
[337835259,1726144245585,-166.1,0.00016438,2]
[337835261,1726144245595,-151.0,0.00016438,2]
[337835263,1726144245604,-151.0,0.00016438,2]
[337835265,1726144245615,-166.1,0.00016438,2]
[337835267,1726144245624,-166.1,0.00016438,2]
[337835269,1726144245635,-166.1,0.00016438,2]
[337835271,1726144245645,-151.0,0.00016438,2]
[337835273,1726144245655,-151.0,0.00016438,2]
[337835275,1726144245665,-151.0,0.00016438,2]
[337835277,1726144245675,-778.809073,0.00016438,2]
[337835279,1726144245685,-778.809073,0.00016438,2]
[337835282,1726144245695,-697.699414,0.00016438,2]
[337835284,1726144245706,-697.699414,0.00016438,2]
[337835286,1726144245715,-151.0,0.00016438,2]
[337835288,1726144245725,-151.0,0.00016438,2]
[337835290,1726144245736,-563.267598,0.00016438,2]
[337835292,1726144245746,-563.267598,0.00016438,2]
[337835294,1726144245755,-563.267598,0.00016438,2]
[337835296,1726144245765,-563.267598,0.00016438,2]
[337835298,1726144245774,-750.30982,0.00016438,2]
[337835300,1726144245783,-750.30982,0.00016438,2]
[337835302,1726144245793,-750.30982,0.00016438,2]
[337835304,1726144245802,-750.30982,0.00016438,2]
[337835306,1726144245812,-989.960061,0.00016438,2]
[337835308,1726144245823,-989.960061,0.00016438,2]
[337835309,1726144245833,-989.960061,0.00016438,2]
[337835311,1726144245842,-989.960061,0.00016438,2]
[337835313,1726144245852,-154.359981,0.00016438,2]
[337835316,1726144245863,-679.309483,0.00016438,2]
[337835318,1726144245872,-679.309483,0.00016438,2]
[337835320,1726144245881,-679.309483,0.00016438,2]
[337835322,1726144245892,-679.309483,0.00016438,2]
[337835324,1726144245905,-151.0,0.00016438,2]
[337835326,1726144245915,-151.0,0.00016438,2]
[337835328,1726144245924,-151.0,0.00016438,2]
[337835330,1726144245934,-151.0,0.00016438,2]
[337835332,1726144245945,-151.0,0.00016438,2]
[337835333,1726144245955,-151.0,0.00016438,2]
[337835335,1726144245965,-10000.0,0.00016438,2]
[337835337,1726144245976,-10000.0,0.00016438,2]
[337835339,1726144245989,-151.0,0.00016438,2]
[337835341,1726144246001,-151.0,0.00016438,2]
[337835343,1726144246011,-151.0,0.00016438,2]
[337835345,1726144246020,-151.0,0.00016438,2]
[337835347,1726144246030,-10000.0,0.00016438,2]
[337835349,1726144246041,-10000.0,0.00016438,2]
[337835351,1726144246051,-10000.0,0.00016438,2]
[337835354,1726144246061,-350.3717,0.00016438,2]
[337835356,1726144246072,-10000.0,0.00016438,2]
[337835358,1726144246082,-350.3717,0.00016438,2]
[337835360,1726144246092,-350.3717,0.00016438,2]
[337835362,1726144246102,-350.3717,0.00016438,2]
[337835364,1726144246112,-10000.0,0.00016438,2]
[337835366,1726144246122,-10000.0,0.00016438,2]
[337835368,1726144246131,-151.0,0.00016438,2]
[337835370,1726144246141,-151.0,0.00016438,2]
[337835372,1726144246150,-151.0,0.00016438,2]
[337835374,1726144246160,-151.0,0.00016438,2]
[337835376,1726144246170,-5450.249753,0.00016438,2]
[337835378,1726144246180,-5450.249753,0.00016438,2]
[337835380,1726144246189,-5450.249753,0.00016438,2]
[337835382,1726144246199,-5450.249753,0.00016438,2]
[337835384,1726144246208,-1312.971434,0.00016438,2]
[337835386,1726144246218,-1312.971434,0.00016438,2]
[337835388,1726144246227,-1312.971434,0.00016438,2]
[337835390,1726144246237,-1312.971434,0.00016438,2]
[337835392,1726144246247,-500.0,0.00016465,2]
[337835394,1726144246257,-203.80591978,0.00016473,2]
[337835396,1726144246267,-358.64522308,0.00016473,2]
[337835398,1726144246277,-500.48613712,0.00016473,2]
[337835400,1726144246287,-500.0,0.00016473,2]
[337835402,1726144246296,-501.51600517,0.00016473,2]
[337835404,1726144246306,-500.0,0.00016473,2]
[337835406,1726144246316,-500.0,0.00016473,2]
[337835408,1726144246325,-500.0,0.00016473,2]
[337835410,1726144246335,-500.0,0.00016473,2]
[337835412,1726144246344,-500.0,0.00016473,2]
[337835414,1726144246354,-161.74523707,0.00016473,2]
[337835416,1726144246364,-500.0,0.00016473,2]
[337835418,1726144246374,-500.20919758,0.00016473,2]
[337835420,1726144246384,-500.0,0.00016473,2]
[337835422,1726144246394,-500.0,0.00016473,2]
[337835424,1726144246403,-170.73036675,0.00016473,2]
[337835426,1726144246413,-158.71415325,0.00016473,2]
[337835428,1726144246423,-540.5179607,0.00016473,2]
[337835430,1726144246433,-173.62030004,0.00016473,2]
[337835433,1726144246443,-200.24011036,0.00016473,2]
[337835435,1726144246454,-609.32214745,0.00016473,2]
[337835437,1726144246464,-160.88505242,0.00016473,2]
[337835439,1726144246474,-500.0,0.00016473,2]
[337835441,1726144246487,-500.0,0.00016473,2]
[337835443,1726144246496,-301.17660414,0.00016473,2]
[337835445,1726144246506,-168.7392622,0.00016473,2]
[337835446,1726144246516,-500.0,0.00016473,2]
[337835448,1726144246525,-501.0719254,0.00016473,2]
[337835451,1726144246536,-569.01280396,0.00016473,2]
[337835453,1726144246546,-500.0,0.00016473,2]
[337835455,1726144246556,-500.0,0.00016473,2]
[337835457,1726144246566,-151.0,0.00016473,2]
[337835459,1726144246576,-504.272436,0.00016473,2]
[337835461,1726144246587,-151.0,0.00016473,2]
[337835463,1726144246597,-151.0,0.00016473,2]
[337835465,1726144246607,-350.3717,0.00016473,2]
[337835467,1726144246617,-350.3717,0.00016473,2]
[337835469,1726144246627,-5450.249753,0.00016473,2]
[337835471,1726144246637,-5450.249753,0.00016473,2]
[337835473,1726144246648,-618.27783336,0.00016493,2]
[337835475,1726144246658,-750.30982,0.00016675,2]
[337835477,1726144246668,-750.30982,0.00016675,2]
[337835479,1726144246677,-989.960061,0.00016675,2]
[337835481,1726144246687,-989.960061,0.00016675,2]
[337835483,1726144246697,-151.0,0.00016675,2]
[337835485,1726144246707,-151.0,0.00016675,2]
[337835487,1726144246716,-151.0,0.00016675,2]
[337835489,1726144246729,-151.0,0.00016675,2]
[337835491,1726144246738,-151.0,0.00016675,2]
[337835493,1726144246748,-1312.971434,0.00016675,2]
[337835495,1726144246757,-1312.971434,0.00016675,2]
[337835497,1726144246768,-8904.2343695,0.0001669,2]
[337835559,1726144247846,-150.01,0.00016437,2]
[337835560,1726144247856,-78.1525621,0.00016437,2]
[337835563,1726144260335,799.49,0.00010959,2]
[337835565,1726144483920,170.56279,0.00015548,2]
[337835566,1726144760623,500.0,0.00013699,2]
[337835571,1726145132116,-2041.91349935,0.00016199,2]
[337835572,1726145158123,-634.09843383,0.00016199,2]
[337835573,1726145242090,-660.4714271,0.00016216,2]
[337835574,1726145242112,-535.98909995,0.00016328,2]
[337835575,1726145248212,-1578.91417907,0.00016328,2]
[337835576,1726145248233,-101.51969427,0.00016337,2]
[337835577,1726145252222,-343.38618555,0.00016337,2]
[337835582,1726145374066,500.0,0.00013699,2]
[337835583,1726145424609,612.87988823,0.00015992,2]
[337835633,1726145432339,-848.77109088,0.00016337,2]
[337835635,1726145432351,-656.3430293,0.00016337,2]
[337835637,1726145432360,-384.38141124,0.00016338,2]
[337835640,1726145432370,-1000.0,0.00016338,2]
[337835642,1726145432379,-384.38141121,0.00016407,2]
[337835644,1726145432388,-300.0,0.00016426,2]
[337835646,1726145432397,-500.0,0.00016427,2]
[337835649,1726145432407,-498.50164978,0.00016427,2]
[337835652,1726145432416,-192.45827145,0.00016427,2]
[337835654,1726145432425,-433.47689128,0.00016427,2]
[337835656,1726145432434,-473.97461464,0.00016427,2]
[337835657,1726145432443,-500.0,0.00016427,2]
[337835658,1726145432453,-500.0,0.00016427,2]
[337835659,1726145432462,-500.0,0.00016427,2]
[337835660,1726145432471,-1403.54085656,0.00016428,2]
[337835661,1726145432483,-807.98813339,0.00016428,2]
[337835936,1726145438338,-17931.71399505,0.00016428,2]
[337835937,1726145438349,-127578.127953,0.00016428,2]
[337835938,1726145438360,-19525.81651126,0.00016438,3]
[337835939,1726145438369,-515.26028296,0.00016438,2]
[337835940,1726145438379,-200.0,0.00016438,2]
[337835941,1726145438388,-503.79180244,0.00016438,2]
[337835942,1726145438397,-500.0,0.00016438,2]
[337835943,1726145438406,-500.0,0.00016438,2]
[337835944,1726145438416,-500.0,0.00016438,2]
[337835945,1726145438427,-500.0,0.00016438,2]
[337835946,1726145438437,-500.0,0.00016438,2]
[337835947,1726145438447,-500.0,0.00016438,2]
[337835948,1726145438457,-500.0,0.00016438,2]
[337835949,1726145438467,-564.20769807,0.00016438,2]
[337835950,1726145438477,-500.0,0.00016438,2]
[337835951,1726145438486,-500.0,0.00016438,2]
[337835952,1726145438495,-500.0,0.00016438,2]
[337835953,1726145438504,-500.0,0.00016438,2]
[337835954,1726145438513,-500.0,0.00016438,2]
[337835955,1726145438522,-674.26,0.00016438,2]
[337835956,1726145438532,-500.0,0.00016438,2]
[337835957,1726145438541,-500.0,0.00016438,2]
[337835958,1726145438554,-178.01214032,0.00016438,2]
[337835959,1726145438563,-391.81252949,0.00016438,2]
[337835960,1726145438572,-500.0,0.00016438,2]
[337835961,1726145438581,-500.0,0.00016438,2]
[337835962,1726145438590,-500.0,0.00016438,2]
[337835963,1726145438599,-500.0,0.00016438,2]
[337835964,1726145438609,-500.0,0.00016438,2]
[337835965,1726145438630,-500.0,0.00016438,2]
[337835966,1726145438640,-581.82,0.00016438,2]
[337835967,1726145438650,-500.0,0.00016438,2]
[337835968,1726145438660,-500.0,0.00016438,2]
[337835969,1726145438670,-500.0,0.00016438,2]
[337835970,1726145438679,-500.0,0.00016438,2]
[337835971,1726145438689,-500.0,0.00016438,2]
[337835972,1726145438699,-500.0,0.00016438,2]
[337835973,1726145438709,-500.0,0.00016438,2]
[337835974,1726145438721,-500.0,0.00016438,2]
[337835975,1726145438730,-500.0,0.00016438,2]
[337835976,1726145438740,-500.0,0.00016438,2]
[337835977,1726145438750,-500.0,0.00016438,2]
[337835978,1726145438759,-500.0,0.00016438,2]